[Event "*** Titled Tuesday Blitz"]
[Site "Chess.com"]
[Date "2020.10.27"]
[Round "1"]
[White "MFBerna"]
[Black "nurgyulsalimova"]
[Result "0-1"]
[WhiteElo "2365"]
[BlackElo "2717"]
[TimeControl "180+1"]
[EndTime "10:08:24 PDT"]
[Termination "nurgyulsalimova won by resignation"]

1. b3 {[%clk 0:02:58.5]} 1... d5 {[%clk 0:02:57.4]} 2. Bb2 {[%clk 0:02:58.8]}
2... Nf6 {[%clk 0:02:57.7]} 3. Nf3 {[%clk 0:02:59.4]} 3... e6 {[%clk 0:02:54.5]}
4. e3 {[%clk 0:03:00.3]} 4... Be7 {[%clk 0:02:53.9]} 5. d4 {[%clk 0:02:58.4]}
5... O-O {[%clk 0:02:52.8]} 6. Be2 {[%clk 0:02:59.3]} 6... b6 {[%clk 0:02:48.8]}
7. O-O {[%clk 0:03:00.2]} 7... Bb7 {[%clk 0:02:49.1]} 8. Nbd2 {[%clk 0:03:01.1]}
8... c5 {[%clk 0:02:49]} 9. c4 {[%clk 0:03:01.1]} 9... Nbd7 {[%clk 0:02:40.9]}
10. Rc1 {[%clk 0:02:58.9]} 10... cxd4 {[%clk 0:02:35.9]} 11. Nxd4 {[%clk
0:02:59.8]} 11... Rc8 {[%clk 0:02:13.7]} 12. cxd5 {[%clk 0:02:50.2]} 12... Nxd5
{[%clk 0:02:13]} 13. Bf3 {[%clk 0:02:47.4]} 13... Rxc1 {[%clk 0:02:10.9]} 14.
Qxc1 {[%clk 0:02:47.1]} 14... Nc5 {[%clk 0:02:03.2]} 15. Qb1 {[%clk 0:02:46]}
15... Bf6 {[%clk 0:01:55.3]} 16. Rd1 {[%clk 0:02:41]} 16... Qe7 {[%clk
0:01:40.6]} 17. Ne4 {[%clk 0:02:38.6]} 17... Nxe4 {[%clk 0:01:31.8]} 18. Bxe4
{[%clk 0:02:39.5]} 18... g6 {[%clk 0:01:14.3]} 19. Rc1 {[%clk 0:02:37]} 19...
Rd8 {[%clk 0:01:08.9]} 20. h3 {[%clk 0:02:31.7]} 20... Kg7 {[%clk 0:00:53.1]}
21. Nc6 {[%clk 0:02:25.8]} 21... Bxc6 {[%clk 0:00:52.1]} 22. Rxc6 {[%clk
0:02:26.7]} 22... Bxb2 {[%clk 0:00:32.6]} 23. Qxb2+ {[%clk 0:02:27.6]} 23... Nf6
{[%clk 0:00:33.1]} 24. Bf3 {[%clk 0:02:22.2]} 24... e5 {[%clk 0:00:32]} 25. Qc3
{[%clk 0:02:16.8]} 25... Rd7 {[%clk 0:00:29.5]} 26. a4 {[%clk 0:02:10.5]} 26...
h5 {[%clk 0:00:29]} 27. g3 {[%clk 0:01:58.6]} 27... Rd6 {[%clk 0:00:24.2]} 28.
Rc7 {[%clk 0:01:55.9]} 28... Rd7 {[%clk 0:00:20.5]} 29. Rxd7 {[%clk 0:01:50.9]}
29... Nxd7 {[%clk 0:00:20.2]} 30. Qc7 {[%clk 0:01:51.1]} 30... Qe6 {[%clk
0:00:18.2]} 31. Be2 {[%clk 0:01:39.3]} 31... a5 {[%clk 0:00:13.1]} 32. Kg2
{[%clk 0:01:31.5]} 32... Nc5 {[%clk 0:00:10.6]} 33. Bc4 {[%clk 0:01:28.5]} 33...
Qf5 {[%clk 0:00:10.9]} 34. Bd5 {[%clk 0:01:11.9]} 34... Qf6 {[%clk 0:00:08.7]}
35. h4 {[%clk 0:00:59.1]} 35... Nd3 {[%clk 0:00:08.6]} 36. f4 {[%clk 0:00:48.5]}
36... exf4 {[%clk 0:00:07.8]} 37. gxf4 {[%clk 0:00:40.9]} 37... Qb2+ {[%clk
0:00:05]} 38. Kh3 {[%clk 0:00:36.4]} 38... Qf6 {[%clk 0:00:03.2]} 39. Bc4 {[%clk
0:00:30.2]} 39... Nf2+ {[%clk 0:00:03.3]} 40. Kg2 {[%clk 0:00:28.6]} 40... Ng4
{[%clk 0:00:04.1]} 41. Kf3 {[%clk 0:00:21]} 41... Nh2+ {[%clk 0:00:02.5]} 42.
Kg3 {[%clk 0:00:17.1]} 42... Ng4 {[%clk 0:00:03.4]} 43. Kf3 {[%clk 0:00:17.2]}
43... Nh6 {[%clk 0:00:03.8]} 44. Qe5 {[%clk 0:00:14.4]} 44... Qxe5 {[%clk
0:00:02.5]} 45. fxe5 {[%clk 0:00:15.3]} 45... Nf5 {[%clk 0:00:03]} 46. Kf4
{[%clk 0:00:15]} 46... Nxh4 {[%clk 0:00:03.4]} 47. Bd5 {[%clk 0:00:11.9]} 47...
Nf5 {[%clk 0:00:03.4]} 48. Be4 {[%clk 0:00:07.8]} 48... Ne7 {[%clk 0:00:03.9]}
49. Bf3 {[%clk 0:00:05.1]} 49... f6 {[%clk 0:00:04.3]} 50. exf6+ {[%clk
0:00:05.2]} 50... Kxf6 {[%clk 0:00:04.5]} 51. Ke4 {[%clk 0:00:06.1]} 51... h4
{[%clk 0:00:04.5]} 52. Bg4 {[%clk 0:00:05.8]} 52... Kg5 {[%clk 0:00:04.4]} 53.
Bh3 {[%clk 0:00:05.7]} 53... Nc6 {[%clk 0:00:04.7]} 54. Kd5 {[%clk 0:00:05.8]}
54... Nb4+ {[%clk 0:00:05.2]} 55. Kc4 {[%clk 0:00:05.8]} 55... Kf6 {[%clk
0:00:05.5]} 56. Kb5 {[%clk 0:00:05.8]} 56... Nd5 {[%clk 0:00:05.9]} 57. e4
{[%clk 0:00:03.5]} 57... Nf4 {[%clk 0:00:05.7]} 58. Kxb6 {[%clk 0:00:04.4]}
58... Nxh3 {[%clk 0:00:06]} 59. b4 {[%clk 0:00:04.8]} 59... axb4 {[%clk
0:00:05.7]} 60. a5 {[%clk 0:00:05.7]} 60... b3 {[%clk 0:00:06.4]} 61. a6 {[%clk
0:00:06.6]} 61... b2 {[%clk 0:00:07.3]} 62. a7 {[%clk 0:00:07.5]} 62... b1=Q+
{[%clk 0:00:07.8]} 0-1

[Event "*** Titled Tuesday Blitz"]
[Site "Chess.com"]
[Date "2020.10.27"]
[Round "1"]
[White "Generalas"]
[Black "cassoulet"]
[Result "0-1"]
[WhiteElo "2334"]
[BlackElo "2673"]
[TimeControl "180+1"]
[EndTime "10:08:26 PDT"]
[Termination "cassoulet won by resignation"]

1. e4 {[%clk 0:02:59.9]} 1... e6 {[%clk 0:02:57.6]} 2. d4 {[%clk 0:02:58.9]}
2... d5 {[%clk 0:02:58.5]} 3. exd5 {[%clk 0:02:59.1]} 3... exd5 {[%clk
0:02:58.4]} 4. c4 {[%clk 0:02:59.7]} 4... Nf6 {[%clk 0:02:58]} 5. Nc3 {[%clk
0:02:59.1]} 5... dxc4 {[%clk 0:02:55.9]} 6. Bxc4 {[%clk 0:02:58.1]} 6... Bd6
{[%clk 0:02:56.8]} 7. Nf3 {[%clk 0:02:57.4]} 7... O-O {[%clk 0:02:56.4]} 8. O-O
{[%clk 0:02:56.7]} 8... Bg4 {[%clk 0:02:56.4]} 9. Bg5 {[%clk 0:02:54.9]} 9...
Nbd7 {[%clk 0:02:54.4]} 10. Qd3 {[%clk 0:02:53.9]} 10... h6 {[%clk 0:02:51]} 11.
Bh4 {[%clk 0:02:53.5]} 11... a6 {[%clk 0:02:51]} 12. Ne4 {[%clk 0:02:41.3]}
12... b5 {[%clk 0:02:49.5]} 13. Bb3 {[%clk 0:02:39]} 13... Be7 {[%clk
0:02:42.8]} 14. Bg3 {[%clk 0:02:20.3]} 14... c5 {[%clk 0:02:36.6]} 15. dxc5
{[%clk 0:02:09]} 15... Nxc5 {[%clk 0:02:37.5]} 16. Nxc5 {[%clk 0:01:54]} 16...
Bxc5 {[%clk 0:02:38.4]} 17. Qxd8 {[%clk 0:01:46.8]} 17... Raxd8 {[%clk
0:02:39.3]} 18. Ne5 {[%clk 0:01:47.1]} 18... Bh5 {[%clk 0:02:36]} 19. Rac1
{[%clk 0:01:39.6]} 19... Ne4 {[%clk 0:02:32.2]} 20. Rfe1 {[%clk 0:01:30.4]}
20... Nxg3 {[%clk 0:02:22.6]} 21. hxg3 {[%clk 0:01:21.8]} 21... Bb4 {[%clk
0:02:21.3]} 22. Re4 {[%clk 0:01:15.4]} 22... Bd6 {[%clk 0:02:17.5]} 23. Nc6
{[%clk 0:00:52.6]} 23... Rde8 {[%clk 0:02:11.3]} 24. Rd4 {[%clk 0:00:47.6]}
24... Bc7 {[%clk 0:01:48.5]} 25. Rd7 {[%clk 0:00:46.3]} 25... Bb6 {[%clk
0:01:44.2]} 26. Ne7+ {[%clk 0:00:43.1]} 26... Kh8 {[%clk 0:01:40.4]} 27. Rc6
{[%clk 0:00:43.7]} 27... Bd8 {[%clk 0:01:37]} 28. Nd5 {[%clk 0:00:40]} 28... a5
{[%clk 0:01:30.6]} 29. a4 {[%clk 0:00:37.4]} 29... bxa4 {[%clk 0:01:27]} 30.
Bxa4 {[%clk 0:00:37.4]} 30... Re1+ {[%clk 0:01:26.3]} 31. Kh2 {[%clk 0:00:37]}
31... Bg4 {[%clk 0:01:24.5]} 32. Ra7 {[%clk 0:00:32.4]} 32... Re2 {[%clk
0:01:18.8]} 33. Ne3 {[%clk 0:00:29.6]} 33... Be6 {[%clk 0:01:17.2]} 34. Rd6
{[%clk 0:00:12.6]} 34... Rxf2 {[%clk 0:01:13]} 35. Ra8 {[%clk 0:00:12]} 35...
Be7 {[%clk 0:01:12.8]} 36. Rxf8+ {[%clk 0:00:11.8]} 36... Bxf8 {[%clk
0:01:13.7]} 37. Rd8 {[%clk 0:00:12.2]} 37... Kg8 {[%clk 0:01:12.9]} 38. b3
{[%clk 0:00:11.5]} 38... g6 {[%clk 0:01:12.2]} 39. Nc4 {[%clk 0:00:10.9]} 39...
Kg7 {[%clk 0:01:10]} 40. Ra8 {[%clk 0:00:10.2]} 40... Bd5 {[%clk 0:01:08.1]} 41.
Rxa5 {[%clk 0:00:08.7]} 41... Bxg2 {[%clk 0:01:04.5]} 42. Kg1 {[%clk 0:00:08.2]}
42... Rc2 {[%clk 0:01:03.5]} 43. Ne3 {[%clk 0:00:08.2]} 43... Bc5 {[%clk
0:00:59.4]} 44. Rxc5 {[%clk 0:00:07.2]} 44... Rxc5 {[%clk 0:01:00.3]} 45. Kxg2
{[%clk 0:00:07.5]} 45... f5 {[%clk 0:00:59.4]} 46. Kf3 {[%clk 0:00:07.8]} 46...
Kf6 {[%clk 0:00:59.1]} 47. b4 {[%clk 0:00:07.5]} 47... Rc3 {[%clk 0:00:59.7]}
48. b5 {[%clk 0:00:07.6]} 48... g5 {[%clk 0:01:00.2]} 49. Ke2 {[%clk 0:00:07.4]}
49... Ke5 {[%clk 0:00:59.6]} 50. Bc2 {[%clk 0:00:07.3]} 50... f4 {[%clk
0:00:59]} 51. gxf4+ {[%clk 0:00:06.8]} 51... gxf4 {[%clk 0:00:59.9]} 52. Ng4+
{[%clk 0:00:07.1]} 52... Kd4 {[%clk 0:01:00.4]} 53. Kd2 {[%clk 0:00:06.8]} 53...
h5 {[%clk 0:00:59.8]} 54. Nf2 {[%clk 0:00:06.6]} 54... h4 {[%clk 0:00:57.1]} 55.
Bd3 {[%clk 0:00:05.8]} 55... Rb3 {[%clk 0:00:56.9]} 56. Be2 {[%clk 0:00:05.5]}
56... Rb2+ {[%clk 0:00:57.1]} 57. Ke1 {[%clk 0:00:05.7]} 57... Rb3 {[%clk
0:00:47.9]} 58. Bd1 {[%clk 0:00:05.6]} 58... Rxb5 {[%clk 0:00:46.4]} 59. Ke2
{[%clk 0:00:04.7]} 59... Rb2+ {[%clk 0:00:34.3]} 60. Kf3 {[%clk 0:00:04.8]}
60... Rd2 {[%clk 0:00:33.2]} 61. Ba4 {[%clk 0:00:03.6]} 61... Ke5 {[%clk
0:00:29.9]} 62. Bb5 {[%clk 0:00:03.4]} 62... Rb2 {[%clk 0:00:27.5]} 63. Bd3
{[%clk 0:00:03.4]} 63... Rb3 {[%clk 0:00:27.1]} 64. Kg4 {[%clk 0:00:03.7]} 64...
Kd4 {[%clk 0:00:25.4]} 65. Kxh4 {[%clk 0:00:03.9]} 65... Ke3 {[%clk 0:00:25.6]}
66. Ng4+ {[%clk 0:00:01.6]} 66... Kxd3 {[%clk 0:00:25.3]} 67. Kg5 {[%clk
0:00:01.3]} 67... f3 {[%clk 0:00:24.9]} 68. Ne5+ {[%clk 0:00:01.3]} 68... Ke2
{[%clk 0:00:25.1]} 0-1

[Event "*** Titled Tuesday Blitz"]
[Site "Chess.com"]
[Date "2020.10.27"]
[Round "1"]
[White "Dr_crypt"]
[Black "Oleksandr_Bortnyk"]
[Result "0-1"]
[WhiteElo "2467"]
[BlackElo "2906"]
[TimeControl "180+1"]
[EndTime "10:08:33 PDT"]
[Termination "Oleksandr_Bortnyk won on time"]

1. d4 {[%clk 0:03:00.4]} 1... d6 {[%clk 0:02:59.7]} 2. Nf3 {[%clk 0:02:58.4]}
2... Nf6 {[%clk 0:02:59.8]} 3. Nc3 {[%clk 0:02:58.3]} 3... Bf5 {[%clk 0:02:54]}
4. g3 {[%clk 0:02:57.4]} 4... c6 {[%clk 0:02:53.7]} 5. Bg2 {[%clk 0:02:57.9]}
5... h6 {[%clk 0:02:45.4]} 6. O-O {[%clk 0:02:57]} 6... Qc7 {[%clk 0:02:44.6]}
7. Re1 {[%clk 0:02:53]} 7... e5 {[%clk 0:02:45.2]} 8. e4 {[%clk 0:02:50.4]} 8...
Bg4 {[%clk 0:02:42.1]} 9. h3 {[%clk 0:02:30.5]} 9... Bxf3 {[%clk 0:02:39.7]} 10.
Bxf3 {[%clk 0:02:31.4]} 10... Nbd7 {[%clk 0:02:39.6]} 11. Bg2 {[%clk 0:02:31.5]}
11... Be7 {[%clk 0:02:37.1]} 12. Be3 {[%clk 0:02:29.7]} 12... Nb6 {[%clk
0:02:28.7]} 13. b3 {[%clk 0:02:26.2]} 13... Rd8 {[%clk 0:02:27]} 14. a4 {[%clk
0:02:16.9]} 14... a5 {[%clk 0:02:23.1]} 15. Qe2 {[%clk 0:02:09.7]} 15... O-O
{[%clk 0:02:21]} 16. Rad1 {[%clk 0:02:08.7]} 16... Rfe8 {[%clk 0:02:18.8]} 17.
d5 {[%clk 0:01:53.3]} 17... Nbd7 {[%clk 0:01:57.6]} 18. Qc4 {[%clk 0:01:41.5]}
18... Rc8 {[%clk 0:01:55.6]} 19. Bf1 {[%clk 0:01:34.8]} 19... cxd5 {[%clk
0:01:41.6]} 20. exd5 {[%clk 0:01:12.9]} 20... Qd8 {[%clk 0:01:31]} 21. Qd3
{[%clk 0:01:10.8]} 21... Nc5 {[%clk 0:01:31.7]} 22. Bxc5 {[%clk 0:01:02.3]}
22... Rxc5 {[%clk 0:01:31.3]} 23. Ne4 {[%clk 0:01:01.7]} 23... Nxe4 {[%clk
0:01:27.5]} 24. Qxe4 {[%clk 0:01:02.6]} 24... Rf8 {[%clk 0:01:21.7]} 25. c4
{[%clk 0:00:28.9]} 25... f5 {[%clk 0:01:00.8]} 26. Qc2 {[%clk 0:00:29.2]} 26...
g6 {[%clk 0:00:46]} 27. Kh2 {[%clk 0:00:26.7]} 27... Bf6 {[%clk 0:00:40.2]} 28.
f3 {[%clk 0:00:26.6]} 28... h5 {[%clk 0:00:36.1]} 29. Bd3 {[%clk 0:00:26.2]}
29... Kg7 {[%clk 0:00:36.1]} 30. Kg2 {[%clk 0:00:26.3]} 30... Qb6 {[%clk
0:00:35.8]} 31. g4 {[%clk 0:00:26.1]} 31... hxg4 {[%clk 0:00:20]} 32. hxg4
{[%clk 0:00:27]} 32... e4 {[%clk 0:00:19.9]} 33. Be2 {[%clk 0:00:20.6]} 33...
Bh4 {[%clk 0:00:17.2]} 34. Rh1 {[%clk 0:00:15.2]} 34... g5 {[%clk 0:00:15.9]}
35. gxf5 {[%clk 0:00:14.6]} 35... Rxd5 {[%clk 0:00:14.4]} 36. Rdf1 {[%clk
0:00:08.6]} 36... Rdxf5 {[%clk 0:00:10.1]} 37. Qxe4 {[%clk 0:00:08.6]} 37... Re5
{[%clk 0:00:10]} 38. Qd3 {[%clk 0:00:07.7]} 38... Rfe8 {[%clk 0:00:09.5]} 39.
Bd1 {[%clk 0:00:06.6]} 39... Re3 {[%clk 0:00:08.5]} 40. Qf5 {[%clk 0:00:03.9]}
40... R8e5 {[%clk 0:00:06.4]} 41. Qd7+ {[%clk 0:00:03.8]} 41... Re7 {[%clk
0:00:06.9]} 42. Qg4 {[%clk 0:00:03.7]} 42... Kf8 {[%clk 0:00:04.7]} 43. Rxh4
{[%clk 0:00:03.7]} 43... gxh4 {[%clk 0:00:04.8]} 44. Qxh4 {[%clk 0:00:02.5]}
44... Rg7+ {[%clk 0:00:04.7]} 45. Kh1 {[%clk 0:00:02.8]} 45... Ree7 {[%clk
0:00:03.6]} 46. Bc2 {[%clk 0:00:02.7]} 46... Qe3 {[%clk 0:00:01.9]} 47. Qh8+
{[%clk 0:00:02.6]} 47... Kf7 {[%clk 0:00:02.2]} 48. Qh5+ {[%clk 0:00:02.6]}
48... Kf8 {[%clk 0:00:02.5]} 49. Qh8+ {[%clk 0:00:02.9]} 49... Rg8 {[%clk
0:00:03.1]} 50. Qf6+ {[%clk 0:00:02.6]} 50... Ke8 {[%clk 0:00:03.7]} 51. Bf5
{[%clk 0:00:01.5]} 51... Qg5 {[%clk 0:00:03.6]} 52. Qxg5 {[%clk 0:00:01.7]}
52... Rxg5 {[%clk 0:00:04.5]} 53. Be4 {[%clk 0:00:01.9]} 53... Re6 {[%clk
0:00:03.5]} 54. Rf2 {[%clk 0:00:02.4]} 54... Rh6+ {[%clk 0:00:03.7]} 55. Rh2
{[%clk 0:00:03.2]} 55... Rxh2+ {[%clk 0:00:04.4]} 56. Kxh2 {[%clk 0:00:04.1]}
56... b6 {[%clk 0:00:05.1]} 57. f4 {[%clk 0:00:04.3]} 57... Rg4 {[%clk
0:00:05.4]} 58. Bc6+ {[%clk 0:00:01.2]} 58... Ke7 {[%clk 0:00:05.5]} 59. f5
{[%clk 0:00:01.3]} 59... Kf6 {[%clk 0:00:06]} 0-1

[Event "*** Titled Tuesday Blitz"]
[Site "Chess.com"]
[Date "2020.10.27"]
[Round "1"]
[White "BursaBBSatranc"]
[Black "pfalcon1949"]
[Result "1-0"]
[WhiteElo "2512"]
[BlackElo "1993"]
[TimeControl "180+1"]
[EndTime "10:08:34 PDT"]
[Termination "BursaBBSatranc won by resignation"]

1. d4 {[%clk 0:03:00]} 1... d5 {[%clk 0:02:56.4]} 2. Bf4 {[%clk 0:02:59.6]} 2...
e6 {[%clk 0:02:55.1]} 3. e3 {[%clk 0:02:59.7]} 3... Nf6 {[%clk 0:02:55]} 4. Nf3
{[%clk 0:02:59.6]} 4... Bd6 {[%clk 0:02:54.3]} 5. Bg3 {[%clk 0:02:58.6]} 5...
Bxg3 {[%clk 0:02:53]} 6. hxg3 {[%clk 0:02:58.4]} 6... Nbd7 {[%clk 0:02:52.3]} 7.
Nbd2 {[%clk 0:02:58.3]} 7... c5 {[%clk 0:02:52.2]} 8. c3 {[%clk 0:02:58.2]} 8...
Qb6 {[%clk 0:02:52]} 9. Rb1 {[%clk 0:02:54.4]} 9... h6 {[%clk 0:02:48.1]} 10.
Bd3 {[%clk 0:02:53]} 10... O-O {[%clk 0:02:47.3]} 11. b4 {[%clk 0:02:48.5]}
11... c4 {[%clk 0:02:45.7]} 12. Bc2 {[%clk 0:02:48]} 12... Re8 {[%clk
0:02:44.6]} 13. O-O {[%clk 0:02:31.3]} 13... e5 {[%clk 0:02:44.1]} 14. dxe5
{[%clk 0:02:30.9]} 14... Nxe5 {[%clk 0:02:45]} 15. Nxe5 {[%clk 0:02:31.1]} 15...
Rxe5 {[%clk 0:02:44.9]} 16. Nf3 {[%clk 0:02:30.3]} 16... Re8 {[%clk 0:02:45.3]}
17. Qd4 {[%clk 0:02:19.3]} 17... Be6 {[%clk 0:02:37.3]} 18. a4 {[%clk
0:02:08.4]} 18... Qc7 {[%clk 0:02:29]} 19. Rbd1 {[%clk 0:01:56.8]} 19... b6
{[%clk 0:02:29.3]} 20. Qh4 {[%clk 0:01:45.9]} 20... Rad8 {[%clk 0:02:22.7]} 21.
Nd4 {[%clk 0:01:44.1]} 21... a6 {[%clk 0:02:08.2]} 22. Ra1 {[%clk 0:01:38.8]}
22... Qe5 {[%clk 0:01:58.5]} 23. a5 {[%clk 0:01:36]} 23... Qc7 {[%clk
0:01:54.2]} 24. axb6 {[%clk 0:01:33.2]} 24... Qxb6 {[%clk 0:01:54.6]} 25. Ra5
{[%clk 0:01:30.9]} 25... Bd7 {[%clk 0:01:44]} 26. Rfa1 {[%clk 0:01:26.5]} 26...
Bb5 {[%clk 0:01:44]} 27. g4 {[%clk 0:00:52.3]} 27... Ne4 {[%clk 0:01:29.6]} 28.
Bxe4 {[%clk 0:00:52.1]} 28... dxe4 {[%clk 0:01:23.6]} 29. g5 {[%clk 0:00:39.4]}
29... hxg5 {[%clk 0:01:06.6]} 30. Qxg5 {[%clk 0:00:40.3]} 30... f6 {[%clk
0:01:02.9]} 31. Qg6 {[%clk 0:00:35.5]} 31... Rxd4 {[%clk 0:00:49.9]} 32. exd4
{[%clk 0:00:31.5]} 32... e3 {[%clk 0:00:48]} 33. fxe3 {[%clk 0:00:24.7]} 33...
Rxe3 {[%clk 0:00:48]} 34. Rf1 {[%clk 0:00:16]} 34... Rxc3 {[%clk 0:00:44.8]} 35.
Qe4 {[%clk 0:00:12.3]} 35... Rd3 {[%clk 0:00:40.4]} 36. Qa8+ {[%clk 0:00:11]}
36... Kh7 {[%clk 0:00:38.9]} 37. Qe4+ {[%clk 0:00:08.8]} 37... Kh8 {[%clk
0:00:38.1]} 38. Rf4 {[%clk 0:00:08.8]} 38... Rd1+ {[%clk 0:00:35.8]} 39. Kf2
{[%clk 0:00:08.8]} 39... Rd2+ {[%clk 0:00:27.7]} 40. Ke1 {[%clk 0:00:06.6]}
40... c3 {[%clk 0:00:27.9]} 41. Rh4+ {[%clk 0:00:06.7]} 41... Kg8 {[%clk
0:00:27.8]} 42. Qd5+ {[%clk 0:00:06.2]} 42... Kf8 {[%clk 0:00:22.7]} 43. Rh8+
{[%clk 0:00:06.5]} 43... Ke7 {[%clk 0:00:21.5]} 44. Ra3 {[%clk 0:00:05]} 44...
Qe6+ {[%clk 0:00:20.8]} 45. Qxe6+ {[%clk 0:00:05.1]} 45... Kxe6 {[%clk
0:00:21.2]} 46. Rxc3 {[%clk 0:00:05.6]} 46... Rxd4 {[%clk 0:00:21]} 47. Rb3
{[%clk 0:00:04.2]} 47... Re4+ {[%clk 0:00:20.7]} 48. Kf2 {[%clk 0:00:04.2]}
48... Re2+ {[%clk 0:00:20.8]} 49. Kf3 {[%clk 0:00:04.8]} 49... Re5 {[%clk
0:00:20.8]} 50. Rc8 {[%clk 0:00:03.8]} 50... g5 {[%clk 0:00:21.3]} 51. Kf2
{[%clk 0:00:04.1]} 51... Kf5 {[%clk 0:00:21.5]} 52. g3 {[%clk 0:00:04.5]} 52...
g4 {[%clk 0:00:21.9]} 53. Rc5 {[%clk 0:00:05.1]} 53... Ke6 {[%clk 0:00:19]} 54.
Rxe5+ {[%clk 0:00:04.8]} 54... Kxe5 {[%clk 0:00:19.6]} 55. Ke3 {[%clk
0:00:05.7]} 55... f5 {[%clk 0:00:19.8]} 56. Rc3 {[%clk 0:00:06.3]} 56... Kd5
{[%clk 0:00:20.1]} 57. Rc5+ {[%clk 0:00:06.8]} 57... Ke6 {[%clk 0:00:19.7]} 58.
Kf4 {[%clk 0:00:07.7]} 58... Kf6 {[%clk 0:00:19.8]} 59. Rxf5+ {[%clk 0:00:07.9]}
59... Kg6 {[%clk 0:00:20.4]} 60. Re5 {[%clk 0:00:08.5]} 60... Kf6 {[%clk
0:00:18]} 61. Rg5 {[%clk 0:00:09.4]} 61... Ke6 {[%clk 0:00:17.9]} 62. Rxg4
{[%clk 0:00:09.1]} 62... Kd5 {[%clk 0:00:18.8]} 63. Rg5+ {[%clk 0:00:09.6]}
63... Kc4 {[%clk 0:00:18.3]} 64. Rg4 {[%clk 0:00:08.4]} 64... Kxb4 {[%clk
0:00:19.2]} 65. Ke5+ {[%clk 0:00:09.3]} 65... Kc5 {[%clk 0:00:19]} 66. Rg5
{[%clk 0:00:08.9]} 66... Bc4 {[%clk 0:00:18.5]} 67. Ke4+ {[%clk 0:00:09.8]}
67... Kb4 {[%clk 0:00:18.9]} 68. Kd4 {[%clk 0:00:10.2]} 68... a5 {[%clk
0:00:19.4]} 69. Rxa5 {[%clk 0:00:10.1]} 69... Kxa5 {[%clk 0:00:18.8]} 70. Kxc4
{[%clk 0:00:10.5]} 70... Kb6 {[%clk 0:00:18.9]} 71. Kd5 {[%clk 0:00:11.4]} 71...
Kc7 {[%clk 0:00:19.8]} 72. Ke6 {[%clk 0:00:12]} 72... Kd8 {[%clk 0:00:20.7]} 73.
Kf7 {[%clk 0:00:12.5]} 73... Kd7 {[%clk 0:00:21]} 74. g4 {[%clk 0:00:13.2]}
74... Kd6 {[%clk 0:00:21.9]} 75. g5 {[%clk 0:00:14.1]} 75... Ke5 {[%clk
0:00:22.8]} 76. g6 {[%clk 0:00:14.8]} 76... Kf5 {[%clk 0:00:23.7]} 77. g7 {[%clk
0:00:15.7]} 77... Ke4 {[%clk 0:00:24.6]} 78. g8=Q {[%clk 0:00:16.6]} 78... Kf3
{[%clk 0:00:25.5]} 79. Qg5 {[%clk 0:00:16.8]} 79... Kf2 {[%clk 0:00:25.7]} 80.
Kf6 {[%clk 0:00:17.7]} 80... Kf1 {[%clk 0:00:26.6]} 81. Kf5 {[%clk 0:00:18.6]}
1-0

[Event "*** Titled Tuesday Blitz"]
[Site "Chess.com"]
[Date "2020.10.27"]
[Round "1"]
[White "Ranindu2003"]
[Black "HrvojeZagreb"]
[Result "0-1"]
[WhiteElo "2567"]
[BlackElo "2242"]
[TimeControl "180+1"]
[EndTime "10:08:35 PDT"]
[Termination "HrvojeZagreb won by resignation"]

1. e4 {[%clk 0:02:59.1]} 1... e6 {[%clk 0:02:58.1]} 2. d4 {[%clk 0:02:58.5]}
2... d5 {[%clk 0:02:58]} 3. Nd2 {[%clk 0:02:59.1]} 3... dxe4 {[%clk 0:02:58.2]}
4. Nxe4 {[%clk 0:03:00]} 4... Nd7 {[%clk 0:02:58.5]} 5. Nf3 {[%clk 0:02:59.4]}
5... Ngf6 {[%clk 0:02:58.5]} 6. Nxf6+ {[%clk 0:02:59.3]} 6... Nxf6 {[%clk
0:02:59.4]} 7. Bd3 {[%clk 0:02:59.2]} 7... c5 {[%clk 0:02:54.7]} 8. dxc5 {[%clk
0:02:45.4]} 8... Bxc5 {[%clk 0:02:52.3]} 9. O-O {[%clk 0:02:46]} 9... Qc7 {[%clk
0:02:46.2]} 10. Bg5 {[%clk 0:02:44.3]} 10... Nd7 {[%clk 0:02:37.6]} 11. Qe2
{[%clk 0:02:40.4]} 11... O-O {[%clk 0:02:28.4]} 12. Rad1 {[%clk 0:02:28.2]}
12... Re8 {[%clk 0:02:23.6]} 13. Bh4 {[%clk 0:02:18.5]} 13... f6 {[%clk
0:02:14.9]} 14. Bg3 {[%clk 0:02:13.2]} 14... e5 {[%clk 0:02:07.1]} 15. Bc4+
{[%clk 0:02:10.5]} 15... Kh8 {[%clk 0:02:07.1]} 16. Nh4 {[%clk 0:02:10.4]} 16...
Nf8 {[%clk 0:02:05.6]} 17. Kh1 {[%clk 0:01:57.2]} 17... Be6 {[%clk 0:01:56.6]}
18. Bd3 {[%clk 0:01:56.2]} 18... Bf7 {[%clk 0:01:42.7]} 19. Qe4 {[%clk
0:01:46.2]} 19... Rad8 {[%clk 0:01:34.7]} 20. Bb5 {[%clk 0:01:35.7]} 20... Rxd1
{[%clk 0:01:27.7]} 21. Rxd1 {[%clk 0:01:36.6]} 21... Rd8 {[%clk 0:01:26.6]} 22.
Bd3 {[%clk 0:01:35.6]} 22... Qb6 {[%clk 0:01:20.5]} 23. f4 {[%clk 0:01:26.3]}
23... Rd4 {[%clk 0:01:06.1]} 24. Qe2 {[%clk 0:01:17.2]} 24... exf4 {[%clk
0:01:02.6]} 25. Bf2 {[%clk 0:01:16.5]} 25... Rxd3 {[%clk 0:00:56.9]} 26. Rxd3
{[%clk 0:01:06]} 26... Bxf2 {[%clk 0:00:56.4]} 27. Nf5 {[%clk 0:00:54.9]} 27...
g6 {[%clk 0:00:42.9]} 28. Nd6 {[%clk 0:00:41]} 28... Be6 {[%clk 0:00:32]} 29. c3
{[%clk 0:00:39.7]} 29... Be3 {[%clk 0:00:31.1]} 30. h3 {[%clk 0:00:30.9]} 30...
Qc6 {[%clk 0:00:29.5]} 31. Qf3 {[%clk 0:00:23.3]} 31... Qxf3 {[%clk 0:00:28.2]}
32. gxf3 {[%clk 0:00:24.2]} 32... Bxh3 {[%clk 0:00:28.2]} 33. Nxb7 {[%clk
0:00:24.4]} 33... Kg7 {[%clk 0:00:24.8]} 34. c4 {[%clk 0:00:24.2]} 34... Ne6
{[%clk 0:00:24]} 35. b4 {[%clk 0:00:22.5]} 35... Ng5 {[%clk 0:00:23.6]} 36. Kh2
{[%clk 0:00:18.2]} 36... Bf5 {[%clk 0:00:22.5]} 37. Rd8 {[%clk 0:00:16]} 37...
Nxf3+ {[%clk 0:00:22.5]} 38. Kg2 {[%clk 0:00:16.7]} 38... Ne5 {[%clk 0:00:22.1]}
39. Nd6 {[%clk 0:00:16.3]} 39... Bd3 {[%clk 0:00:20.4]} 40. Ne8+ {[%clk
0:00:13.1]} 40... Kh6 {[%clk 0:00:20.1]} 41. Nxf6 {[%clk 0:00:12.9]} 41... f3+
{[%clk 0:00:19.9]} 42. Kg3 {[%clk 0:00:08.4]} 42... f2 {[%clk 0:00:19.8]} 43.
Rxd3 {[%clk 0:00:08.9]} 43... f1=Q {[%clk 0:00:18.6]} 44. Rxe3 {[%clk
0:00:08.8]} 44... Qg1+ {[%clk 0:00:16.4]} 45. Kf4 {[%clk 0:00:08.2]} 45... Qg5+
{[%clk 0:00:15]} 46. Ke4 {[%clk 0:00:08.2]} 46... Qxf6 {[%clk 0:00:15.2]} 47. c5
{[%clk 0:00:08.8]} 47... Kg7 {[%clk 0:00:15.3]} 48. Kd5 {[%clk 0:00:08.6]} 48...
Ng4 {[%clk 0:00:15.2]} 49. Re6 {[%clk 0:00:08.4]} 49... Qf7 {[%clk 0:00:14.3]}
50. Kd6 {[%clk 0:00:07.7]} 50... Nf6 {[%clk 0:00:14.6]} 51. Re7 {[%clk
0:00:07.8]} 51... Ne4+ {[%clk 0:00:13.5]} 52. Kd7 {[%clk 0:00:07.5]} 52... Nf6+
{[%clk 0:00:12.3]} 53. Kd6 {[%clk 0:00:07.6]} 53... Qxe7+ {[%clk 0:00:11.3]} 54.
Kxe7 {[%clk 0:00:08.2]} 54... Nd5+ {[%clk 0:00:12.2]} 55. Kd6 {[%clk 0:00:08.1]}
55... Nxb4 {[%clk 0:00:13.1]} 56. a4 {[%clk 0:00:08.3]} 56... g5 {[%clk
0:00:12.8]} 57. Ke5 {[%clk 0:00:08.5]} 57... h5 {[%clk 0:00:11]} 58. Kf5 {[%clk
0:00:08.1]} 58... g4 {[%clk 0:00:10.4]} 59. Kf4 {[%clk 0:00:08.6]} 59... Kf6
{[%clk 0:00:10.7]} 60. a5 {[%clk 0:00:09.2]} 60... Ke6 {[%clk 0:00:10.8]} 61. c6
{[%clk 0:00:09.4]} 61... Nxc6 {[%clk 0:00:10.4]} 62. a6 {[%clk 0:00:09.2]} 62...
Nb4 {[%clk 0:00:10.7]} 63. Kg3 {[%clk 0:00:10.1]} 63... Nxa6 {[%clk 0:00:11.6]}
64. Kh4 {[%clk 0:00:10.9]} 64... Nc5 {[%clk 0:00:11.9]} 65. Kxh5 {[%clk
0:00:11.8]} 65... g3 {[%clk 0:00:12.3]} 0-1